lending/lending_fUSD_20250706
["ID","MTS","AMOUNT","RATE_DAILY","PERIOD"]
[369959636,1751797849164,-965.16,0.00019178,2]
[369959637,1751797849175,-460.0,0.00019178,2]
[369959638,1751797849186,-460.0,0.00019178,2]
[369959639,1751797849198,-460.0,0.00019178,2]
[369959640,1751797849209,-460.0,0.00019178,2]
[369959641,1751797849220,-772.03,0.00019178,2]
[369959642,1751797849232,-531.43916298,0.00019178,2]
[369959643,1751797849243,-460.0,0.00019178,2]
[369959644,1751797849254,-460.0,0.00019178,2]
[369959645,1751797849266,-460.0,0.00019178,2]
[369959646,1751797849278,-460.0,0.00019178,2]
[369959647,1751797849289,-460.0,0.00019178,2]
[369959648,1751797849300,-460.0,0.00019178,2]
[369959649,1751797849312,-460.0,0.00019178,2]
[369959650,1751797849323,-460.0,0.00019178,2]
[369959651,1751797849334,-460.0,0.00019178,2]
[369959652,1751797849346,-460.0,0.00019178,2]
[369959653,1751797849358,-460.0,0.00019178,2]
[369959654,1751797849370,-460.0,0.00019178,2]
[369959655,1751797849382,-460.0,0.00019178,2]
[369959656,1751797849394,-460.0,0.00019178,2]
[369959657,1751797849406,-500.0,0.00019178,2]
[369959658,1751797849418,-460.0,0.00019178,2]
[369959659,1751797849430,-460.0,0.00019178,2]
[369959660,1751797849442,-460.0,0.00019178,2]
[369959661,1751797849665,-460.0,0.00019178,2]
[369959662,1751797849677,-460.0,0.00019178,2]
[369959663,1751797849689,-460.0,0.00019178,2]
[369959664,1751797849702,-165.914755,0.00019178,2]
[369959665,1751797849714,-460.0,0.00019178,2]
[369959666,1751797849730,-460.0,0.00019178,2]
[369959667,1751797849746,-460.0,0.00019178,2]
[369959668,1751797849759,-460.0,0.00019178,2]
[369959669,1751797850179,-460.0,0.00019178,2]
[369959670,1751797850206,-554.74,0.00019178,2]
[369959671,1751797850217,-460.0,0.00019178,2]
[369959672,1751797850227,-460.0,0.00019178,2]
[369959673,1751797850238,-460.0,0.00019178,2]
[369959674,1751797850249,-460.0,0.00019178,2]
[369959675,1751797850258,-460.0,0.00019178,2]
[369959676,1751797850267,-460.0,0.00019178,2]
[369959677,1751797850277,-460.0,0.00019178,2]
[369959678,1751797850287,-460.0,0.00019178,2]
[369959679,1751797850296,-460.0,0.00019178,2]
[369959680,1751797850305,-500.0,0.00019178,2]
[369959681,1751797850315,-500.0,0.00019178,2]
[369959682,1751797850324,-500.0,0.00019178,2]
[369959683,1751797850334,-460.0,0.00019178,2]
[369959684,1751797850343,-460.0,0.00019178,2]
[369959685,1751797850353,-460.0,0.00019178,2]
[369959686,1751797850362,-460.0,0.00019178,2]
[369959687,1751797850371,-460.0,0.00019178,2]
[369959688,1751797850380,-460.0,0.00019178,2]
[369959689,1751797850390,-460.0,0.00019178,2]
[369959690,1751797850399,-460.0,0.00019178,2]
[369959691,1751797850408,-460.0,0.00019178,2]
[369959692,1751797850417,-460.0,0.00019178,2]
[369959693,1751797850426,-460.0,0.00019178,2]
[369959694,1751797850435,-612.73,0.00019178,2]
[369959695,1751797850445,-460.0,0.00019178,2]
[369959696,1751797850455,-460.0,0.00019178,2]
[369959697,1751797850465,-460.0,0.00019178,2]
[369959698,1751797850475,-460.0,0.00019178,2]
[369959699,1751797850484,-732.01,0.00019178,2]
[369959700,1751797850495,-460.0,0.00019178,2]
[369959701,1751797850504,-460.0,0.00019178,2]
[369959702,1751797850514,-460.0,0.00019178,2]
[369959703,1751797850523,-460.0,0.00019178,2]
[369959704,1751797850533,-460.0,0.00019178,2]
[369959705,1751797850542,-893.93,0.00019178,2]
[369959706,1751797850552,-460.0,0.00019178,2]
[369959707,1751797850562,-460.0,0.00019178,2]
[369959708,1751797850572,-460.0,0.00019178,2]
[369959709,1751797850582,-460.0,0.00019178,2]
[369959710,1751797850591,-460.0,0.00019178,2]
[369959711,1751797850600,-460.0,0.00019178,2]
[369959712,1751797850609,-460.0,0.00019178,2]
[369959713,1751797850619,-460.0,0.00019178,2]
[369959714,1751797850628,-460.0,0.00019178,2]
[369959715,1751797850638,-460.0,0.00019178,2]
[369959716,1751797850648,-460.0,0.00019178,2]
[369959717,1751797850660,-460.0,0.00019178,2]
[369959718,1751797850670,-460.0,0.00019178,2]
[369959719,1751797850679,-460.0,0.00019178,2]
[369959720,1751797850689,-478.69,0.00019178,2]
[369959721,1751797850699,-643.97,0.00019178,2]
[369959722,1751797850709,-460.0,0.00019178,2]
[369959723,1751797850719,-460.0,0.00019178,2]
[369959724,1751797850732,-460.0,0.00019178,2]
[369959725,1751797850742,-460.0,0.00019178,2]
[369959726,1751797850751,-460.0,0.00019178,2]
[369959727,1751797850761,-176.03317848,0.00019178,2]
[369959728,1751797850770,-523.24754513,0.00019178,2]
[369959729,1751797850780,-460.0,0.00019178,2]
[369959730,1751797850790,-460.0,0.00019178,2]
[369959731,1751797850799,-586.29,0.00019178,2]
[369959732,1751797850809,-1199.48,0.00019178,2]
[369959733,1751797850819,-460.0,0.00019178,2]
[369959734,1751797850828,-460.0,0.00019178,2]
[369959735,1751797850838,-759.02,0.00019178,2]
[369959736,1751797850847,-465.69914195,0.00019178,2]
[369959737,1751797850857,-460.0,0.00019178,2]
[369959738,1751797850867,-460.0,0.00019178,2]
[369959739,1751797850876,-460.0,0.00019178,2]
[369959740,1751797850885,-542.88,0.00019178,2]
[369959741,1751797850895,-460.0,0.00019178,2]
[369959742,1751797850904,-460.0,0.00019178,2]
[369959743,1751797850914,-460.0,0.00019178,2]
[369959744,1751797850926,-460.0,0.00019178,2]
[369959745,1751797850936,-460.0,0.00019178,2]
[369959746,1751797850946,-460.0,0.00019178,2]
[369959747,1751797850956,-460.0,0.00019178,2]
[369959748,1751797850965,-741.17,0.00019178,2]
[369959749,1751797850974,-460.0,0.00019178,2]
[369959750,1751797850983,-460.0,0.00019178,2]
[369959751,1751797850992,-460.0,0.00019178,2]
[369959752,1751797851002,-273.91916346,0.00019178,2]
[369959753,1751797851011,-460.0,0.00019178,2]
[369959754,1751797851021,-460.0,0.00019178,2]
[369959755,1751797851031,-481.49,0.00019178,2]
[369959756,1751797851040,-754.72,0.00019178,2]
[369959757,1751797851051,-177.36974668,0.00019178,2]
[369959758,1751797851060,-460.0,0.00019178,2]
[369959759,1751797851070,-460.0,0.00019178,2]
[369959760,1751797851079,-460.0,0.00019178,2]
[369959761,1751797851088,-460.0,0.00019178,2]
[369959762,1751797851097,-460.0,0.00019178,2]
[369959763,1751797851106,-460.0,0.00019178,2]
[369959764,1751797851116,-460.0,0.00019178,2]
[369959765,1751797851125,-460.0,0.00019178,2]
[369959766,1751797851134,-460.0,0.00019178,2]
[369959767,1751797851143,-460.0,0.00019178,2]
[369959768,1751797851152,-604.24,0.00019178,2]
[369959769,1751797851161,-460.0,0.00019178,2]
[369959770,1751797851171,-460.0,0.00019178,2]
[369959771,1751797851180,-460.0,0.00019178,2]
[369959772,1751797851190,-460.0,0.00019178,2]
[369959773,1751797851199,-460.0,0.00019178,2]
[369959774,1751797851209,-462.01271965,0.00019178,2]
[369959775,1751797851218,-460.0,0.00019178,2]
[369959776,1751797851228,-494.58,0.00019178,2]
[369959777,1751797851238,-473.99,0.00019178,2]
[369959778,1751797851249,-539.75393241,0.00019178,2]
[369959779,1751797851258,-460.0,0.00019178,2]
[369959780,1751797851267,-748.93,0.00019178,2]
[369959781,1751797851276,-460.0,0.00019178,2]
[369959782,1751797851286,-460.0,0.00019178,2]
[369959783,1751797851295,-460.0,0.00019178,2]
[369959784,1751797851305,-460.0,0.00019178,2]
[369959785,1751797851315,-460.0,0.00019178,2]
[369959786,1751797851324,-460.0,0.00019178,2]
[369959787,1751797851334,-460.0,0.00019178,2]
[369959788,1751797851343,-552.77,0.00019178,2]
[369959789,1751797851352,-577.36,0.00019178,2]
[369959790,1751797851362,-431.80424304,0.00019178,2]
[369959791,1751797851372,-588.06387614,0.00019178,2]
[369959792,1751797851381,-460.0,0.00019178,2]
[369959793,1751797851391,-666.11,0.00019178,2]
[369959794,1751797851401,-460.0,0.00019178,2]
[369959795,1751797851410,-460.0,0.00019178,2]
[369959796,1751797851420,-460.0,0.00019178,2]
[369959797,1751797851431,-509.38,0.00019178,2]
[369959798,1751797851440,-1000.0,0.00019178,2]
[369959799,1751797851450,-431.09288924,0.00019178,2]
[369959800,1751797851460,-471.62,0.00019178,2]
[369959801,1751797851470,-656.62,0.00019178,2]
[369959802,1751797851479,-460.0,0.00019178,2]
[369959803,1751797851489,-460.0,0.00019178,2]
[369959804,1751797851499,-460.0,0.00019178,2]
[369959805,1751797851508,-460.0,0.00019178,2]
[369959806,1751797851517,-460.0,0.00019178,2]
[369959807,1751797851527,-460.0,0.00019178,2]
[369959808,1751797851536,-375.39991593,0.00019178,2]
[369959809,1751797851547,-500.0,0.00019178,2]
[369959810,1751797851558,-500.0,0.00019178,2]
[369959811,1751797851567,-460.0,0.00019178,2]
[369959812,1751797851576,-500.0,0.00019178,2]
[369959813,1751797851586,-460.0,0.00019178,2]
[369959814,1751797851595,-460.0,0.00019178,2]
[369959815,1751797851604,-605.68,0.00019178,2]
[369959816,1751797851614,-647.22,0.00019178,2]
[369959817,1751797851623,-460.0,0.00019178,2]
[369959818,1751797851633,-460.0,0.00019178,2]
[369959819,1751797851642,-460.0,0.00019178,2]
[369959820,1751797851651,-460.0,0.00019178,2]
[369959821,1751797851660,-460.0,0.00019178,2]
[369959822,1751797851670,-220.71565995,0.00019178,2]
[369959823,1751797851680,-460.0,0.00019178,2]
[369959824,1751797851689,-460.0,0.00019178,2]
[369959825,1751797851698,-981.27,0.00019178,2]
[369959826,1751797851708,-460.0,0.00019178,2]
[369959827,1751797851718,-460.0,0.00019178,2]
[369959828,1751797851731,-460.0,0.00019178,2]
[369959829,1751797851740,-180.0,0.00019178,2]
[369959830,1751797851749,-460.0,0.00019178,2]
[369959831,1751797851758,-460.0,0.00019178,2]
[369959832,1751797851767,-460.0,0.00019178,2]
[369959833,1751797851777,-460.0,0.00019178,2]
[369959834,1751797851786,-460.0,0.00019178,2]
[369959835,1751797851795,-460.0,0.00019178,2]
[369959836,1751797851806,-460.0,0.00019178,2]
[369959837,1751797851815,-460.0,0.00019178,2]
[369959838,1751797851824,-460.0,0.00019178,2]
[369959839,1751797851835,-728.93,0.00019178,2]
[369959840,1751797851848,-460.0,0.00019178,2]
[369959841,1751797851860,-460.0,0.00019178,2]
[369959842,1751797851871,-460.0,0.00019178,2]
[369959843,1751797851881,-460.0,0.00019178,2]
[369959844,1751797851891,-460.0,0.00019178,2]
[369959845,1751797851900,-469.9,0.00019178,2]
[369959846,1751797851910,-460.0,0.00019178,2]
[369959847,1751797851920,-460.0,0.00019178,2]
[369959848,1751797851930,-460.0,0.00019178,2]
[369959849,1751797851940,-1059.55,0.00019178,2]
[369959850,1751797851949,-460.0,0.00019178,2]
[369959851,1751797851959,-460.0,0.00019178,2]
[369959852,1751797851968,-460.0,0.00019178,2]
[369959853,1751797851978,-460.0,0.00019178,2]
[369959854,1751797851987,-460.0,0.00019178,2]
[369959855,1751797851996,-503.51,0.00019178,2]
[369959856,1751797852005,-460.0,0.00019178,2]
[369959857,1751797852014,-460.0,0.00019178,2]
[369959858,1751797852023,-460.0,0.00019178,2]
[369959859,1751797852032,-551.88104325,0.00019178,2]
[369959860,1751797852041,-1063.47,0.00019178,2]
[369959861,1751797852050,-460.0,0.00019178,2]
[369959862,1751797852060,-460.0,0.00019178,2]
[369959863,1751797852069,-460.0,0.00019178,2]
[369959864,1751797852078,-460.0,0.00019178,2]
[369959865,1751797852087,-462.44,0.00019178,2]
[369959866,1751797852097,-504.64,0.00019178,2]
[369959867,1751797852107,-460.0,0.00019178,2]
[369959868,1751797852117,-460.0,0.00019178,2]
[369959869,1751797852126,-460.0,0.00019178,2]
[369959870,1751797852135,-460.0,0.00019178,2]
[369959871,1751797852144,-460.0,0.00019178,2]
[369959872,1751797852155,-460.0,0.00019178,2]
[369959873,1751797852166,-460.0,0.00019178,2]
[369959874,1751797852176,-460.0,0.00019178,2]
[369959875,1751797852185,-460.0,0.00019178,2]
[369959876,1751797852195,-460.0,0.00019178,2]
[369959877,1751797852204,-460.0,0.00019178,2]
[369959878,1751797852214,-669.03,0.00019178,2]
[369959879,1751797852223,-582.81,0.00019178,2]
[369959880,1751797852233,-418.11083309,0.00019178,2]
[369959881,1751797853069,-250.0,0.00017448,2]
[369959882,1751797853078,-41.88916691,0.00019178,2]
[369959883,1751797853089,-275.16083361,0.00019178,2]
[369959884,1751797853119,-184.83916639,0.00019178,2]
[369959885,1751797853129,-460.0,0.00019178,2]
[369959886,1751797853139,-460.0,0.00019178,2]
[369959887,1751797853149,-460.0,0.00019178,2]
[369959888,1751797853160,-649.25,0.00019178,2]
[369959889,1751797853170,-460.0,0.00019178,2]
[369959890,1751797853180,-151.0,0.00019178,2]
[369959891,1751797853190,-460.0,0.00019178,2]
[369959892,1751797853200,-460.0,0.00019178,2]
[369959893,1751797853209,-572.54,0.00019178,2]
[369959894,1751797853219,-151.0,0.00019178,2]
[369959895,1751797853229,-460.0,0.00019178,2]
[369959896,1751797853238,-460.0,0.00019178,2]
[369959897,1751797853249,-909.28,0.00019178,2]
[369959898,1751797853258,-222.89430034,0.00019178,2]
[369959899,1751797853275,-237.10569966,0.00019178,2]
[369959900,1751797853284,-460.0,0.00019178,2]
[369959901,1751797853294,-609.10637211,0.00019178,2]
[369959902,1751797853304,-307.06662158,0.00019178,2]
[369959903,1751797853534,-156.27572533,0.00019178,2]
[369959904,1751797853543,-460.0,0.00019178,2]
[369959905,1751797853553,-149.8676293,0.00019178,2]
[369959906,1751797853636,-2.21612065,0.00019178,2]
[369960001,1751798389584,240.7,0.00013699,2]
[369960056,1751799032205,-250.0,0.00015,2]
[369960057,1751799032215,-300.0,0.00017063,2]
[369960058,1751799032224,-1200.0,0.00017063,2]
[369960059,1751799032233,-500.0,0.00017064,2]
[369960060,1751799032243,-500.0,0.00017064,2]
[369960061,1751799032252,-304.21,0.00017064,2]
[369960062,1751799032261,-303.59,0.00017064,2]
[369960063,1751799032270,-305.91,0.00017064,2]
[369960064,1751799032279,-301.31,0.00017064,2]
[369960065,1751799032288,-305.53,0.00017064,2]
[369960066,1751799032297,-301.34,0.00017064,2]
[369960067,1751799032307,-303.2,0.00017064,2]
[369960068,1751799032316,-305.23,0.00017064,2]
[369960069,1751799032326,-301.38,0.00017247,2]
[369960070,1751799032335,-200.0,0.00017875,7]
[369960071,1751799032344,-1700.60389851,0.000179,2]
[369960072,1751799032353,-1000.0,0.0001793,2]
[369960073,1751799032362,-666.0,0.0001797,2]
[369960074,1751799032372,-150.0,0.00017975,2]
[369960075,1751799032381,-159.57521607,0.00017975,2]
[369960076,1751799032391,-150.0,0.00017975,2]
[369960077,1751799032400,-150.0,0.00017975,2]
[369960078,1751799032409,-150.40605803,0.00017975,2]
[369960079,1751799032419,-151.85010581,0.00017975,2]
[369960080,1751799032428,-150.0,0.00017975,2]
[369960081,1751799032437,-251.0,0.000181,2]
[369960082,1751799032447,-500.0,0.0001816,2]
[369960083,1751799032456,-170.53,0.00018222,2]
[369960084,1751799032466,-205.24,0.00018225,2]
[369960086,1751799032475,-144.72925157,0.00018261,2]
[369960089,1751799032499,-62.67074843,0.00018261,2]
[369960091,1751799032509,-168.41,0.00018329,2]
[369960093,1751799032518,-348.86607292,0.00018521,2]
[369960095,1751799032530,-396.05317865,0.00018521,2]
[369960097,1751799032541,-955.68464688,0.00018521,2]
[369960099,1751799032551,-246.0,0.0001859,2]
[369960101,1751799032561,-420.0,0.00018636,2]
[369960103,1751799032571,-150.0,0.00018641,2]
[369960105,1751799032580,-300.0,0.000187,6]
[369960107,1751799032589,-250.0,0.00018706,2]
[369960109,1751799032599,-1059.0,0.00018728,2]
[369960111,1751799032608,-300.0,0.0001877,2]
[369960113,1751799032618,-600.0,0.000188,6]
[369960115,1751799032627,-900.0,0.000189,6]
[369960117,1751799032637,-300.0,0.00018979,2]
[369960119,1751799032647,-45601.00341281,0.0001899,2]
[369960121,1751799032656,-2506.82068469,0.00019,2]
[369960123,1751799032665,-151.021695,0.00019062,2]
[369960125,1751799032674,-836.76783547,0.00019062,2]
[369960127,1751799032683,-160.0,0.00019062,2]
[369960129,1751799032692,-241.0,0.0001907,2]
[369960131,1751799032701,-1557.58616679,0.00019078,2]
[369960133,1751799032710,-428.61313035,0.00019078,2]
[369960135,1751799032719,-350.26186347,0.00019078,2]
[369960137,1751799032729,-5000.0,0.00019078,2]
[369960139,1751799032738,-1700.60389845,0.00019141,2]
[369960140,1751799032748,-2265.7,0.00019152,2]
[369960143,1751799032758,-230.49179833,0.00019163,2]
[369960145,1751799032768,-350.26186339,0.00019169,2]
[369960147,1751799032777,-476.922,0.0001917,2]
[369960149,1751799032787,-1557.58616677,0.0001917,2]
[369960151,1751799032796,-177.07097959,0.00019177,2]
[369960152,1751799032805,-500.0,0.00019177,2]
[369960154,1751799032814,-500.0,0.00019177,2]
[369960156,1751799032823,-619.77834815,0.00019177,2]
[369960158,1751799032832,-3591.84344644,0.00019178,2]
[369960160,1751799032842,-460.0,0.00019178,2]
[369960162,1751799032851,-464.89020999,0.00019178,2]
[369960164,1751799032860,-460.0,0.00019178,2]
[369960166,1751799032871,-460.0,0.00019178,2]
[369960168,1751799032880,-460.0,0.00019178,2]
[369960170,1751799032889,-460.0,0.00019178,2]
[369960172,1751799032898,-460.0,0.00019178,2]
[369960174,1751799032907,-460.0,0.00019178,2]
[369960176,1751799032917,-460.0,0.00019178,2]
[369960179,1751799032926,-460.0,0.00019178,2]
[369960180,1751799032935,-460.0,0.00019178,2]
[369960182,1751799032944,-460.0,0.00019178,2]
[369960184,1751799032953,-460.0,0.00019178,2]
[369960186,1751799032962,-460.0,0.00019178,2]
[369960188,1751799032971,-460.0,0.00019178,2]
[369960190,1751799032980,-460.0,0.00019178,2]
[369960192,1751799032989,-170.64026,0.00019178,2]
[369960194,1751799032998,-163.072734,0.00019178,2]
[369960196,1751799033007,-1241.617931,0.00019178,2]
[369960198,1751799033016,-460.0,0.00019178,2]
[369960200,1751799033025,-460.0,0.00019178,2]
[369960202,1751799033034,-460.0,0.00019178,2]
[369960204,1751799033046,-460.0,0.00019178,2]
[369960206,1751799033055,-460.0,0.00019178,2]
[369960208,1751799033065,-460.0,0.00019178,2]
[369960210,1751799033074,-460.0,0.00019178,2]
[369960212,1751799033083,-460.0,0.00019178,2]
[369960214,1751799033094,-460.0,0.00019178,2]
[369960216,1751799033103,-460.0,0.00019178,2]
[369960218,1751799033114,-460.0,0.00019178,2]
[369960220,1751799033124,-460.0,0.00019178,2]
[369960222,1751799033133,-460.0,0.00019178,2]
[369960224,1751799033142,-460.0,0.00019178,2]
[369960226,1751799033152,-460.0,0.00019178,2]
[369960229,1751799033162,-460.0,0.00019178,2]
[369960230,1751799033174,-460.0,0.00019178,2]
[369960232,1751799033184,-460.0,0.00019178,2]
[369960234,1751799033193,-460.0,0.00019178,2]
[369960236,1751799033203,-290.802403,0.00019178,2]
[369960237,1751799033212,-155.616551,0.00019178,2]
[369960238,1751799033221,-460.0,0.00019178,2]
[369960239,1751799033230,-460.0,0.00019178,2]
[369960240,1751799033239,-460.0,0.00019178,2]
[369960241,1751799033249,-173.953963,0.00019178,2]
[369960242,1751799033259,-509.25208835,0.00019178,2]
[369960243,1751799033269,-460.0,0.00019178,2]
[369960244,1751799033278,-460.0,0.00019178,2]
[369960245,1751799033287,-160.728233,0.00019178,2]
[369960246,1751799033296,-460.0,0.00019178,2]
[369960247,1751799033305,-543.06430474,0.00019178,2]
[369960248,1751799033314,-460.0,0.00019178,2]
[369960249,1751799033324,-460.0,0.00019178,2]
[369960250,1751799033333,-460.0,0.00019178,2]
[369960251,1751799033343,-460.0,0.00019178,2]
[369960252,1751799033352,-523.0834363,0.00019178,2]
[369960254,1751799033362,-460.0,0.00019178,2]
[369960256,1751799033371,-516.69,0.00019178,2]
[369960258,1751799033381,-460.0,0.00019178,2]
[369960260,1751799033390,-467.12180159,0.00019178,2]
[369960262,1751799033399,-460.0,0.00019178,2]
[369960264,1751799033409,-469.33287147,0.00019178,2]
[369960266,1751799033418,-465.24360897,0.00019178,2]
[369960268,1751799033429,-460.0,0.00019178,2]
[369960270,1751799033439,-460.0,0.00019178,2]
[369960271,1751799033448,-467.58536386,0.00019178,2]
[369960273,1751799033458,-465.67539319,0.00019178,2]
[369960275,1751799033468,-460.0,0.00019178,2]
[369960277,1751799033478,-460.0,0.00019178,2]
[369960278,1751799033487,-460.0,0.00019178,2]
[369960279,1751799033497,-460.0,0.00019178,2]
[369960280,1751799033507,-460.0,0.00019178,2]
[369960281,1751799033517,-460.0,0.00019178,2]
[369960282,1751799033527,-460.0,0.00019178,2]
[369960283,1751799033537,-460.0,0.00019178,2]
[369960284,1751799033547,-460.0,0.00019178,2]
[369960285,1751799033557,-460.0,0.00019178,2]
[369960286,1751799033567,-555.06,0.00019178,2]
[369960287,1751799033576,-460.0,0.00019178,2]
[369960288,1751799033586,-460.0,0.00019178,2]
[369960289,1751799033596,-460.0,0.00019178,2]
[369960290,1751799033606,-460.0,0.00019178,2]
[369960291,1751799033615,-460.0,0.00019178,2]
[369960292,1751799033624,-460.0,0.00019178,2]
[369960293,1751799033634,-460.0,0.00019178,2]
[369960294,1751799033643,-456.5,0.00019178,2]
[369960295,1751799033652,-463.39766494,0.00019178,2]
[369960296,1751799033662,-460.0,0.00019178,2]
[369960297,1751799033671,-460.0,0.00019178,2]
[369960298,1751799033681,-460.0,0.00019178,2]
[369960299,1751799033690,-460.0,0.00019178,2]
[369960300,1751799033700,-460.0,0.00019178,2]
[369960301,1751799033710,-460.0,0.00019178,2]
[369960302,1751799033720,-460.0,0.00019178,2]
[369960303,1751799033730,-460.0,0.00019178,2]
[369960304,1751799033739,-460.0,0.00019178,2]
[369960305,1751799033749,-460.0,0.00019178,2]
[369960306,1751799033758,-460.0,0.00019178,2]
[369960307,1751799033768,-460.0,0.00019178,2]
[369960308,1751799033779,-460.0,0.00019178,2]
[369960309,1751799033788,-460.0,0.00019178,2]
[369960310,1751799033798,-465.1,0.00019178,2]
[369960311,1751799033808,-460.0,0.00019178,2]
[369960312,1751799033818,-460.0,0.00019178,2]
[369960313,1751799033827,-460.0,0.00019178,2]
[369960314,1751799033837,-460.0,0.00019178,2]
[369960315,1751799033847,-460.0,0.00019178,2]
[369960316,1751799033856,-460.0,0.00019178,2]
[369960317,1751799033869,-460.0,0.00019178,2]
[369960318,1751799033879,-460.0,0.00019178,2]
[369960319,1751799033889,-310.48080272,0.00019178,2]
[369960320,1751799033899,-465.39474282,0.00019178,2]
[369960321,1751799033909,-460.0,0.00019178,2]
[369960322,1751799033920,-460.0,0.00019178,2]
[369960323,1751799033930,-460.0,0.00019178,2]
[369960324,1751799033940,-460.0,0.00019178,2]
[369960325,1751799033950,-460.0,0.00019178,2]
[369960326,1751799033960,-460.0,0.00019178,2]
[369960327,1751799033970,-465.48724976,0.00019178,2]
[369960328,1751799033981,-460.0,0.00019178,2]
[369960329,1751799033991,-460.0,0.00019178,2]
[369960330,1751799034001,-460.0,0.00019178,2]
[369960331,1751799034011,-460.0,0.00019178,2]
[369960332,1751799034021,-460.0,0.00019178,2]
[369960333,1751799034032,-460.0,0.00019178,2]
[369960334,1751799034044,-460.0,0.00019178,2]
[369960335,1751799034054,-598.33877568,0.00019178,2]
[369960336,1751799034064,-460.0,0.00019178,2]
[369960337,1751799034074,-460.0,0.00019178,2]
[369960338,1751799034083,-460.0,0.00019178,2]
[369960339,1751799034093,-460.0,0.00019178,2]
[369960340,1751799034102,-460.0,0.00019178,2]
[369960341,1751799034111,-460.0,0.00019178,2]
[369960342,1751799034124,-460.0,0.00019178,2]
[369960343,1751799034133,-460.0,0.00019178,2]
[369960344,1751799034143,-460.0,0.00019178,2]
[369960345,1751799034152,-460.0,0.00019178,2]
[369960346,1751799034162,-460.0,0.00019178,2]
[369960347,1751799034174,-460.0,0.00019178,2]
[369960348,1751799034184,-460.0,0.00019178,2]
[369960349,1751799034194,-460.0,0.00019178,2]
[369960350,1751799034203,-579.06,0.00019178,2]
[369960351,1751799034214,-460.0,0.00019178,2]
[369960352,1751799034223,-460.0,0.00019178,2]
[369960353,1751799034232,-460.0,0.00019178,2]
[369960354,1751799034241,-460.0,0.00019178,2]
[369960355,1751799034251,-460.0,0.00019178,2]
[369960356,1751799034262,-460.0,0.00019178,2]
[369960357,1751799034272,-460.0,0.00019178,2]
[369960358,1751799034281,-276.72279009,0.00019178,2]
[369960359,1751799034290,-529.74,0.00019178,2]
[369960360,1751799034299,-460.0,0.00019178,2]
[369960361,1751799034308,-460.0,0.00019178,2]
[369960362,1751799034317,-460.0,0.00019178,2]
[369960363,1751799034326,-460.0,0.00019178,2]
[369960364,1751799034335,-460.0,0.00019178,2]
[369960365,1751799034344,-460.0,0.00019178,2]
[369960366,1751799034353,-460.0,0.00019178,2]
[369960367,1751799034363,-460.0,0.00019178,2]
[369960368,1751799034373,-460.0,0.00019178,2]
[369960369,1751799034382,-460.0,0.00019178,2]
[369960370,1751799034391,-460.0,0.00019178,2]
[369960371,1751799034400,-460.0,0.00019178,2]